bitfinex/quotes_BTCUSD_20241009
["timestamp","ask_amount","ask_price","bid_price","bid_amount"]
[1728502427016,0.44602491,61067.0,61066.0,0.000818]
[1728502427683,0.44802491,61067.0,61066.0,0.000818]
[1728502428131,0.44002491,61067.0,61066.0,0.000818]
[1728502428353,0.44502491,61067.0,61066.0,0.001818]
[1728502428626,0.28527091,61067.0,61066.0,0.002818]
[1728502428843,0.00328342,61067.0,61066.0,0.32541264]
[1728502429090,0.01028342,61067.0,61066.0,0.32541264]
[1728502429343,0.009,61067.0,61066.0,0.32541264]
[1728502429556,0.007,61067.0,61066.0,0.16165564]
[1728502429768,0.005,61067.0,61066.0,0.32841264]
[1728502429983,0.005,61067.0,61066.0,0.16165564]
[1728502430202,0.005,61067.0,61066.0,0.16365564]
[1728502430428,0.005,61067.0,61066.0,0.32741264]
[1728502430647,0.005,61067.0,61066.0,0.16365564]
[1728502430929,0.005,61067.0,61066.0,0.32741264]
[1728502431381,0.005,61068.0,61067.0,0.163754]
[1728502431635,0.005,61068.0,61067.0,0.32459164]
[1728502431852,0.005,61068.0,61067.0,0.16083764]
[1728502432555,0.005,61068.0,61067.0,0.32459164]
[1728502432765,0.001636,61072.0,61071.0,0.163743]
[1728502433004,0.001636,61072.0,61071.0,0.32458064]
[1728502435259,0.001636,61072.0,61071.0,0.33158064]
[1728502435716,0.001636,61072.0,61071.0,0.16783764]
[1728502435937,0.001636,61072.0,61071.0,0.17383764]
[1728502436168,0.001636,61072.0,61071.0,0.33758064]
[1728502436859,0.001636,61072.0,61071.0,0.34573898]
[1728502437383,0.001636,61072.0,61071.0,0.53760989]
[1728502437589,0.001636,61072.0,61071.0,0.71270989]
[1728502438017,0.001636,61072.0,61071.0,0.76167358]
[1728502438475,0.001636,61072.0,61071.0,0.71270989]
[1728502440802,0.001636,61072.0,61071.0,0.76167358]
[1728502441990,0.00328342,61083.0,61071.0,0.76167358]
[1728502441991,0.001636,61088.0,61076.0,0.123]
[1728502442206,0.24686427,61088.0,61081.0,0.44755464]
[1728502442465,0.001636,61088.0,61081.0,2.84192775]
[1728502442709,0.001636,61088.0,61081.0,3.06004876]
[1728502442944,0.239859,61103.0,61081.0,2.89633176]
[1728502442945,0.005,61098.0,61081.0,2.89633176]
[1728502443188,0.24522827,61095.0,61094.0,0.29187091]
[1728502443407,0.24522827,61102.0,61101.0,0.163663]
[1728502443635,0.001634,61106.0,61101.0,0.16083764]
[1728502443636,0.005,61104.0,61101.0,0.16083764]
[1728502443902,0.005,61104.0,61102.0,0.16083764]
[1728502444149,0.005,61104.0,61094.0,0.1]
[1728502444150,0.005,61098.0,61087.0,0.023]
[1728502444386,0.005,61098.0,61091.0,0.163688]
[1728502444387,0.163678,61096.0,61091.0,0.163688]
[1728502444622,0.163678,61096.0,61089.0,0.327385]
[1728502444623,0.002,61093.0,61089.0,0.163695]
[1728502444853,0.163683,61094.0,61088.0,0.16083764]
[1728502444854,0.16897042,61092.0,61088.0,0.16083764]
[1728502445085,0.16697242,61092.0,61088.0,0.16083764]
[1728502445554,0.16697242,61092.0,61091.0,0.013]
[1728502445782,0.00328342,61092.0,61091.0,0.013]
[1728502446008,0.00528342,61092.0,61091.0,0.013]
[1728502446242,0.00328342,61092.0,61091.0,0.013]
[1728502446765,0.17197042,61092.0,61091.0,0.013]
[1728502447011,0.17197042,61092.0,61079.0,0.24522827]
[1728502447012,0.163714,61082.0,61079.0,0.24522827]
[1728502447246,0.005,61084.0,61079.0,0.24522827]
[1728502447247,0.00828342,61084.0,61081.0,0.16165464]
[1728502447483,0.327394,61089.0,61088.0,0.013]
[1728502447484,0.005,61089.0,61088.0,0.013]
[1728502448158,0.005,61088.0,61086.0,0.163703]
[1728502448390,0.005,61088.0,61087.0,0.16083764]
[1728502448882,0.163707,61085.0,61081.0,0.00905943]
[1728502449116,0.005,61086.0,61082.0,0.16083764]
[1728502449117,0.00328342,61084.0,61082.0,0.16083764]
[1728502449355,0.005,61086.0,61082.0,0.16083764]
[1728502449587,0.005,61086.0,61085.0,0.163706]
[1728502449807,0.005,61087.0,61085.0,0.32454364]
[1728502450051,0.005,61087.0,61086.0,0.16083764]
[1728502451223,0.00328342,61089.0,61082.0,0.004]
[1728502451224,0.163708,61085.0,61082.0,0.004]
[1728502451479,0.005,61086.0,61083.0,0.16083764]
[1728502451480,0.00328342,61084.0,61083.0,0.16083764]
[1728502452191,0.00328342,61084.0,61083.0,0.32454864]
[1728502452423,0.005,61089.0,61084.0,0.327417]
[1728502452655,0.005,61085.0,61081.0,0.00905943]
[1728502452900,0.00328342,61092.0,61081.0,0.08705943]
[1728502453129,0.0824,61097.0,61081.0,0.08705943]
[1728502453130,0.005,61091.0,61083.0,0.123]
[1728502453380,0.005,61093.0,61092.0,0.163686]
[1728502453613,0.0824,61097.0,61096.0,0.163676]
[1728502453614,0.005,61097.0,61096.0,0.163676]
[1728502454079,0.005,61097.0,61089.0,0.327389]
[1728502454080,0.005,61097.0,61095.0,0.163678]
[1728502454323,0.005,61097.0,61096.0,0.163676]
[1728502454808,0.005,61097.0,61095.0,0.163678]
[1728502455043,0.005,61091.0,61084.0,0.327417]
[1728502455283,0.16869,61091.0,61090.0,0.24522827]
[1728502455520,0.16869,61091.0,61085.0,0.16083764]
[1728502455521,0.168703,61086.0,61085.0,0.16083764]
[1728502455751,0.007,61086.0,61085.0,0.16083764]
[1728502456467,0.005,61086.0,61085.0,0.16083764]
[1728502456688,0.005,61086.0,61085.0,0.16883764]
[1728502457161,0.005,61086.0,61085.0,0.16083764]
[1728502457395,0.005,61086.0,61085.0,0.33254364]
[1728502457629,0.005,61086.0,61085.0,0.16883764]
[1728502460286,0.005,61088.0,61085.0,0.16883764]
[1728502460505,0.005,61091.0,61088.0,0.327394]
[1728502460748,0.005,61091.0,61085.0,0.49624664]
[1728502460749,0.005,61093.0,61089.0,0.16083764]
[1728502460984,0.001634,61097.0,61086.0,0.327406]
[1728502460985,0.001634,61097.0,61090.0,0.16083764]
[1728502461216,0.001634,61097.0,61096.0,0.163676]
[1728502461452,0.001634,61097.0,61096.0,0.32451364]
[1728502463438,0.001634,61097.0,61096.0,0.33251364]
[1728502464356,0.001634,61097.0,61096.0,0.34077038]
[1728502464812,0.001634,61097.0,61096.0,0.34777038]
[1728502467043,0.001634,61097.0,61096.0,0.66264129]
[1728502467296,0.001634,61097.0,61096.0,1.10447929]
[1728502467793,0.001634,61097.0,61096.0,1.09747929]
[1728502468257,0.001634,61097.0,61096.0,1.10647929]
[1728502468499,0.001634,61097.0,61096.0,1.09847929]
[1728502468741,0.001634,61097.0,61096.0,1.08947929]
[1728502468946,0.001634,61106.0,61105.0,0.186652]
[1728502469153,0.001634,61106.0,61105.0,0.34748964]
[1728502469864,0.00327,61112.0,61105.0,0.18383764]
[1728502470085,0.24522827,61115.0,61110.0,0.163637]
[1728502470086,0.00655342,61115.0,61110.0,0.163637]
[1728502470334,0.00327,61112.0,61111.0,0.32447364]
[1728502470770,0.00655342,61115.0,61114.0,0.163628]
[1728502470986,0.00655342,61115.0,61114.0,0.16083764]
[1728502470987,0.00327,61115.0,61114.0,0.16083764]
[1728502471248,0.00327,61112.0,61106.0,0.1]
[1728502471480,0.00327,61112.0,61108.0,0.163644]
[1728502471714,0.00327,61112.0,61109.0,0.16083764]
[1728502471973,0.00655342,61112.0,61109.0,0.16083764]
[1728502472219,0.00327,61112.0,61109.0,0.16083764]
[1728502472673,0.166904,61112.0,61109.0,0.16083764]
[1728502472894,0.00327,61112.0,61109.0,0.16783764]
[1728502473142,0.00328342,61113.0,61109.0,0.16783764]
[1728502473388,0.084536,61117.0,61116.0,0.286623]
[1728502473389,0.001636,61117.0,61116.0,0.286623]
[1728502473624,0.0177268,61126.0,61125.0,0.163599]
[1728502473864,0.0209968,61126.0,61125.0,0.32443664]
[1728502474816,0.1845928,61126.0,61125.0,0.16083764]
[1728502475078,0.00327,61122.0,61117.0,0.163619]
[1728502475311,0.0796,61121.0,61120.0,0.24522827]
[1728502475546,0.08288342,61121.0,61120.0,0.16083764]
[1728502475825,0.002,61120.0,61116.0,0.0222732]
[1728502476063,0.00327,61116.0,61114.0,0.24522827]
[1728502476285,0.16690642,61116.0,61115.0,0.16083764]
[1728502476531,0.17017642,61116.0,61115.0,0.16083764]
[1728502477677,0.441995,61115.0,61114.0,0.007]
[1728502478921,0.00327,61106.0,61105.0,0.24522827]
[1728502479171,0.16692,61106.0,61105.0,0.24522827]
[1728502479406,0.16692,61106.0,61098.0,0.24522827]
[1728502479407,0.00327,61104.0,61103.0,0.00835439]
[1728502479666,0.00655342,61104.0,61103.0,0.16919203]
[1728502480609,0.00327,61104.0,61103.0,0.33285003]
[1728502481076,0.00327,61104.0,61103.0,0.17419203]
[1728502481762,0.00327,61104.0,61103.0,0.17919203]
[1728502482741,0.00327,61104.0,61103.0,0.34285003]
[1728502483445,0.00327,61110.0,61109.0,0.163642]
[1728502483658,0.00327,61110.0,61109.0,0.51635055]
[1728502483855,0.16362,61117.0,61111.0,0.163636]
[1728502483856,0.00327,61112.0,61111.0,0.163636]
[1728502484113,0.00327,61112.0,61111.0,0.32447364]
[1728502485289,0.00327,61112.0,61111.0,0.32947364]
[1728502485729,0.00327,61112.0,61111.0,0.32447364]
[1728502486185,0.00327,61112.0,61111.0,0.32947364]
[1728502486409,0.00327,61112.0,61111.0,0.32447364]
[1728502486848,0.00327,61112.0,61111.0,0.33347364]
[1728502487798,0.166903,61112.0,61111.0,0.017]
[1728502488034,0.17018642,61112.0,61111.0,0.017]
[1728502488950,0.17218642,61112.0,61111.0,0.017]
[1728502489173,0.17018642,61112.0,61111.0,0.017]
[1728502490324,0.44198642,61112.0,61111.0,0.017]
[1728502490542,0.438703,61112.0,61111.0,0.017]
[1728502491006,0.440703,61112.0,61111.0,0.017]
[1728502491453,0.440703,61112.0,61111.0,0.009818]
[1728502492475,0.440703,61112.0,61111.0,0.000818]
[1728502492703,0.441703,61112.0,61111.0,0.000818]
[1728502492926,0.00427,61112.0,61111.0,0.000818]
[1728502493165,0.00427,61112.0,61111.0,0.164454]
[1728502493871,0.00427,61112.0,61111.0,0.32529164]
[1728502494096,0.00327,61112.0,61111.0,0.32529164]
[1728502494814,0.00327,61112.0,61111.0,0.16165564]
[1728502495052,0.00328342,61115.0,61114.0,0.163628]
[1728502495297,0.004906,61116.0,61114.0,0.16083764]
[1728502495547,0.004906,61116.0,61114.0,0.32446464]
[1728502496259,0.004906,61116.0,61115.0,0.32446264]
[1728502496734,0.001636,61116.0,61115.0,0.32446264]
[1728502497895,0.001636,61116.0,61115.0,0.32846264]
[1728502498147,0.001636,61116.0,61115.0,0.33246264]
[1728502498570,0.001636,61116.0,61115.0,0.32846264]
[1728502499735,0.001636,61116.0,61115.0,0.32446264]
[1728502500206,0.001636,61116.0,61115.0,0.34346264]
[1728502500441,0.001636,61116.0,61115.0,0.33346264]
[1728502500682,0.001636,61116.0,61115.0,0.33546264]
[1728502500922,0.001636,61116.0,61115.0,0.34546264]
[1728502501661,0.001636,61116.0,61115.0,0.33446264]
[1728502502185,0.001636,61116.0,61115.0,0.32446264]
[1728502502902,0.001636,61116.0,61115.0,0.33446264]
[1728502503131,0.001636,61116.0,61115.0,0.32446264]
[1728502503386,0.001636,61116.0,61115.0,0.94993764]
[1728502503583,0.001636,61116.0,61115.0,1.04327168]
[1728502503864,0.001636,61116.0,61115.0,1.0432729]
[1728502504108,0.001636,61116.0,61115.0,0.73903796]
[1728502504366,0.001636,61116.0,61115.0,0.95665307]
[1728502504595,0.001636,61116.0,61115.0,0.75709264]
[1728502504867,0.001636,61116.0,61115.0,0.56762307]
[1728502505124,0.001636,61116.0,61115.0,0.44546264]
[1728502505628,0.001636,61116.0,61115.0,0.5432505]
[1728502505862,0.001636,61116.0,61115.0,0.44546264]
[1728502506100,0.001636,61116.0,61115.0,0.18183764]
[1728502506361,0.001636,61116.0,61115.0,0.34546264]
[1728502506615,0.001636,61116.0,61115.0,0.18183764]
[1728502506616,0.003636,61116.0,61115.0,0.18183764]
[1728502506848,0.001636,61116.0,61115.0,0.18183764]
[1728502507084,0.003636,61116.0,61115.0,0.18183764]
[1728502507326,0.003636,61116.0,61115.0,0.53733355]
[1728502507327,0.001636,61116.0,61115.0,0.53733355]
[1728502507867,0.001636,61116.0,61115.0,0.56033355]
[1728502508117,0.001636,61116.0,61115.0,0.70926564]
[1728502508349,0.001636,61116.0,61115.0,0.79146564]
[1728502508606,0.001636,61116.0,61115.0,2.40462564]
[1728502508856,0.001636,61116.0,61115.0,2.12060755]
[1728502510312,0.001636,61116.0,61115.0,2.19523602]
[1728502510565,0.001636,61116.0,61115.0,2.07292755]
[1728502511774,0.001636,61116.0,61115.0,2.19523963]
[1728502512005,0.001636,61116.0,61115.0,2.07292755]
[1728502513372,0.001636,61116.0,61115.0,1.88516172]
[1728502515417,0.001636,61116.0,61115.0,1.8606899]
[1728502515644,0.001636,61116.0,61115.0,1.93601655]
[1728502515879,0.001636,61116.0,61115.0,1.93774655]
[1728502516566,0.001636,61116.0,61115.0,1.93856455]
[1728502520007,0.001636,61116.0,61115.0,1.32051755]
[1728502521423,0.001636,61116.0,61115.0,1.44270951]
[1728502522113,0.001636,61116.0,61115.0,1.32051755]
[1728502522572,0.001636,61116.0,61115.0,1.4426931]
[1728502524448,0.001636,61116.0,61115.0,1.44268356]
[1728502524697,0.001636,61116.0,61115.0,0.51959026]
[1728502524939,0.001636,61116.0,61115.0,0.34628064]
[1728502524940,0.083536,61116.0,61115.0,0.34628064]
[1728502525939,0.09208942,61116.0,61115.0,0.000818]
[1728502526170,0.25571242,61116.0,61115.0,0.011818]
[1728502526395,0.25571242,61116.0,61115.0,0.010818]
[1728502526987,0.25571242,61116.0,61115.0,0.000818]
[1728502527211,0.25671242,61116.0,61115.0,0.000818]
[1728502527438,0.25771242,61116.0,61115.0,0.000818]
[1728502528369,0.25671242,61116.0,61115.0,0.000818]
[1728502528627,0.25871242,61116.0,61115.0,0.000818]
[1728502529085,0.25671242,61116.0,61115.0,0.000818]
[1728502529318,0.086806,61116.0,61115.0,0.32528064]
[1728502529556,0.088536,61116.0,61115.0,0.32528064]
[1728502529814,0.006636,61116.0,61115.0,0.54015155]
[1728502530034,0.006636,61116.0,61115.0,0.64015155]
[1728502530495,0.004636,61116.0,61115.0,0.64015155]
[1728502530731,0.004636,61116.0,61115.0,0.65015155]
[1728502530966,0.004636,61116.0,61115.0,0.64015155]
[1728502531650,0.001636,61116.0,61115.0,0.64015155]
[1728502532133,0.001636,61116.0,61115.0,0.63815155]
[1728502532372,0.001636,61116.0,61115.0,0.65645272]
[1728502532609,0.001636,61116.0,61115.0,0.66045272]
[1728502533079,0.001636,61116.0,61115.0,0.65645272]
[1728502533509,0.001636,61116.0,61115.0,0.66545272]
[1728502533511,0.001636,61116.0,61115.0,0.47358181]
[1728502533738,0.001636,61116.0,61115.0,0.35058181]
[1728502536208,0.001636,61116.0,61115.0,0.35712881]
[1728502540336,0.001636,61116.0,61115.0,0.35794681]
[1728502541255,0.001536,61116.0,61115.0,0.35794681]
[1728502543525,0.001536,61116.0,61115.0,0.40690173]
[1728502545318,0.001536,61116.0,61115.0,0.35794681]
[1728502549536,0.27167691,61116.0,61115.0,0.34428064]
[1728502549748,0.27167691,61116.0,61115.0,0.18065564]
[1728502549749,0.28351141,61116.0,61115.0,0.18065564]
[1728502550162,0.28351141,61116.0,61115.0,0.34428064]
[1728502550370,0.28351141,61116.0,61115.0,0.010818]
[1728502550572,0.47589483,61116.0,61115.0,0.010818]
[1728502550785,0.47461141,61116.0,61115.0,0.010818]
[1728502550985,0.63823441,61116.0,61115.0,0.010818]
[1728502551198,0.47461141,61116.0,61115.0,0.010818]
[1728502551609,0.47461141,61116.0,61115.0,0.000818]
[1728502552036,0.47661141,61116.0,61115.0,0.000818]
[1728502553613,0.64023441,61116.0,61115.0,0.000818]
[1728502554032,0.47661141,61116.0,61115.0,0.000818]
[1728502554246,0.2847405,61116.0,61115.0,0.164443]
[1728502555639,0.2847405,61116.0,61115.0,0.000818]
[1728502557224,0.64023441,61116.0,61115.0,0.000818]
[1728502558110,0.47661141,61116.0,61115.0,0.000818]
[1728502558832,0.2847405,61116.0,61115.0,0.000818]
[1728502559042,0.28802392,61116.0,61115.0,0.164443]
[1728502559281,0.28802392,61116.0,61115.0,0.000818]
[1728502560400,0.28802392,61116.0,61115.0,0.164443]
[1728502560605,0.2847405,61116.0,61115.0,0.000818]
[1728502560820,0.28802392,61116.0,61115.0,0.000818]
[1728502561239,0.28802392,61116.0,61115.0,0.164443]
[1728502561581,0.2847405,61116.0,61115.0,0.164443]
[1728502561809,0.28802392,61116.0,61115.0,0.164443]
[1728502562420,0.28802392,61116.0,61115.0,0.000818]
[1728502563112,0.45164692,61116.0,61115.0,0.000818]
[1728502563282,0.4483635,61116.0,61115.0,0.000818]
[1728502563703,0.4533635,61116.0,61115.0,0.000818]
[1728502564078,0.77500775,61116.0,61115.0,0.000818]
[1728502564331,0.77500775,61116.0,61111.0,0.000818]
[1728502564332,0.175903,61112.0,61111.0,0.000818]
[1728502564536,0.01227,61105.0,61104.0,0.24522827]
[1728502564887,0.64827633,61105.0,61104.0,0.24522827]
[1728502565094,0.69577218,61105.0,61104.0,0.24522827]
[1728502565261,0.01027,61102.0,61101.0,0.1]
[1728502565476,0.26041342,61102.0,61101.0,0.1]
[1728502567452,0.09675342,61102.0,61101.0,0.1]
[1728502567925,0.10375342,61102.0,61101.0,0.101]
[1728502568378,0.09347,61102.0,61101.0,0.263663]
[1728502568602,0.09047,61102.0,61101.0,0.1]
[1728502568966,0.08847,61102.0,61101.0,0.1]
[1728502569194,0.09147,61102.0,61101.0,0.1]
[1728502569371,0.09873812,61102.0,61101.0,0.1]
[1728502569620,0.09873812,61102.0,61098.0,0.00834606]
[1728502569621,0.00527,61101.0,61098.0,0.17201506]
[1728502569759,0.00527,61099.0,61098.0,0.17201506]
[1728502570173,0.01253812,61099.0,61098.0,0.17201506]
[1728502571738,0.01353812,61099.0,61098.0,0.17201506]
[1728502574386,0.01682154,61099.0,61098.0,0.17201506]
[1728502574813,0.00955342,61099.0,61098.0,0.17201506]
[1728502575016,0.00627,61099.0,61098.0,0.17283306]
[1728502575239,0.00627,61099.0,61098.0,0.164487]
[1728502578383,0.00627,61099.0,61098.0,0.167798]
[1728502578645,0.00627,61099.0,61098.0,0.24153262]
[1728502578906,0.00627,61099.0,61098.0,0.05328661]
[1728502579178,0.00627,61099.0,61098.0,0.004129]
[1728502579179,0.17322142,61099.0,61098.0,0.004129]
[1728502579498,0.45422142,61099.0,61098.0,0.004129]
[1728502579698,0.55035451,61099.0,61098.0,0.004129]
[1728502580169,0.54935451,61099.0,61098.0,0.004129]
[1728502580666,0.73946991,61099.0,61098.0,0.005129]
[1728502580922,0.51073695,61099.0,61098.0,0.006129]
[1728502581165,0.55950805,61099.0,61098.0,0.006129]
[1728502581890,0.51073695,61099.0,61098.0,0.006129]
[1728502582155,0.55950805,61099.0,61098.0,0.006129]
[1728502582838,0.55450805,61099.0,61098.0,0.006129]
[1728502583088,0.454938,61099.0,61098.0,0.006129]
[1728502583372,0.29127,61099.0,61098.0,0.006129]
[1728502583609,0.09027,61099.0,61098.0,0.1688]
[1728502583855,0.00527,61099.0,61098.0,0.1678]
[1728502584108,0.01227,61099.0,61098.0,0.1688]
[1728502584571,0.01027,61099.0,61098.0,0.21797115]
[1728502584802,0.00527,61099.0,61098.0,0.21697115]
[1728502585070,0.00527,61099.0,61098.0,0.1678]
[1728502587023,0.00855342,61099.0,61098.0,0.1678]
[1728502588694,0.00527,61099.0,61098.0,0.1678]
[1728502589733,0.00527,61099.0,61098.0,0.21697115]
[1728502589997,0.00527,61099.0,61098.0,0.1678]
[1728502590512,0.00855342,61099.0,61098.0,0.1678]
[1728502590766,0.00855342,61099.0,61098.0,0.21797115]
[1728502591228,0.00527,61099.0,61098.0,0.1688]
[1728502591231,0.00527,61099.0,61098.0,0.21797115]
[1728502591457,0.00527,61099.0,61098.0,0.1688]
[1728502592158,0.00527,61099.0,61098.0,0.21797115]
[1728502592437,0.00527,61099.0,61098.0,0.1688]
[1728502592680,0.00527,61099.0,61098.0,0.21796175]
[1728502593173,0.00527,61099.0,61098.0,0.21796252]
[1728502593407,0.00527,61099.0,61098.0,0.1688]
[1728502593654,0.00527,61099.0,61098.0,0.21796239]
[1728502595090,0.00855342,61099.0,61098.0,0.1688]
[1728502595561,0.00855342,61099.0,61098.0,0.21796226]
[1728502596516,0.00527,61099.0,61098.0,0.21796226]
[1728502597242,0.00527,61099.0,61098.0,0.21796302]
[1728502597998,0.00527,61099.0,61098.0,0.1688]
[1728502598250,0.00527,61099.0,61098.0,0.21796255]
[1728502598505,0.00527,61099.0,61098.0,0.21793819]
[1728502598980,0.00527,61099.0,61098.0,0.1688]
[1728502599458,0.00527,61099.0,61098.0,0.005129]
[1728502599701,0.17222142,61099.0,61098.0,0.005129]
[1728502600219,0.25312142,61099.0,61098.0,0.005129]
[1728502600451,0.54909635,61099.0,61098.0,0.005129]
[1728502600709,0.54581293,61099.0,61098.0,0.005129]
[1728502600948,0.54781293,61099.0,61098.0,0.005129]
[1728502601417,0.54781293,61099.0,61098.0,0.004129]
[1728502601644,0.445938,61099.0,61098.0,0.004129]
[1728502601899,0.443938,61099.0,61098.0,0.004129]
[1728502602366,0.448938,61099.0,61098.0,0.005129]
[1728502602655,0.61177564,61099.0,61098.0,0.005129]
[1728502603164,0.77258225,61099.0,61098.0,0.005129]
[1728502603411,0.77258225,61099.0,61085.0,0.000817]
[1728502603412,0.173973,61086.0,61085.0,0.000817]
[1728502603642,0.60219406,61086.0,61085.0,0.000817]
[1728502603915,0.59691064,61086.0,61085.0,0.000817]
[1728502604378,0.75771725,61086.0,61085.0,0.000917]
[1728502606306,0.98058816,61086.0,61085.0,0.001917]
[1728502607037,0.98758816,61086.0,61085.0,0.002917]
[1728502607269,0.98058816,61086.0,61085.0,0.001917]
[1728502607796,0.98758816,61086.0,61085.0,0.002917]
[1728502608561,0.96258816,61086.0,61085.0,0.002917]
[1728502608806,0.80178155,61086.0,61085.0,0.002917]
[1728502609301,0.64094391,61086.0,61085.0,0.002917]
[1728502610268,0.63494391,61086.0,61085.0,0.001917]
[1728502610534,0.62794391,61086.0,61085.0,0.000917]
[1728502610779,0.73994391,61086.0,61085.0,0.002917]
[1728502611022,0.63994391,61086.0,61085.0,0.002917]
[1728502611264,0.45924391,61086.0,61085.0,0.002917]
[1728502612263,0.01727,61086.0,61085.0,0.002917]
[1728502612496,0.18425642,61086.0,61085.0,0.002917]
[1728502613755,0.02055342,61086.0,61085.0,0.002917]
[1728502614000,0.18425642,61086.0,61085.0,0.002917]
[1728502614942,0.17825642,61086.0,61085.0,0.001917]
[1728502615463,0.18225642,61086.0,61085.0,0.001917]
[1728502615708,0.17625642,61086.0,61085.0,0.000917]
[1728502615948,0.18025642,61086.0,61085.0,0.000917]
[1728502616436,0.01255342,61086.0,61085.0,0.000917]
[1728502616716,0.01255342,61086.0,61085.0,0.001917]
[1728502616968,0.01755342,61086.0,61085.0,0.002917]
[1728502617207,0.01755342,61086.0,61085.0,0.164623]
[1728502617208,0.00855342,61086.0,61085.0,0.164623]
[1728502617428,0.00827,61086.0,61085.0,0.164623]
[1728502617659,0.00927,61086.0,61085.0,0.164623]
[1728502617890,0.00827,61086.0,61085.0,0.164623]
[1728502618092,0.01227,61086.0,61085.0,0.164623]
[1728502618567,0.00527,61086.0,61085.0,0.164623]
[1728502620232,0.00627,61086.0,61085.0,0.164623]
[1728502620749,0.00527,61086.0,61085.0,0.164623]
[1728502621011,0.32280705,61086.0,61085.0,0.001917]
[1728502621266,0.48036127,61086.0,61085.0,0.001917]
[1728502621508,0.41121064,61086.0,61085.0,0.001917]
[1728502621758,0.41121064,61086.0,61085.0,0.000917]
[1728502621997,0.250373,61086.0,61085.0,0.000917]
[1728502622259,0.25365642,61086.0,61085.0,0.002917]
[1728502622715,0.25365642,61086.0,61085.0,0.000917]
[1728502623426,0.25865642,61086.0,61085.0,0.001917]
[1728502623653,0.25365642,61086.0,61085.0,0.000917]
[1728502623906,0.17625642,61086.0,61085.0,0.001917]
[1728502624144,0.18125642,61086.0,61085.0,0.002917]
[1728502624670,0.00927,61086.0,61085.0,0.165623]
[1728502624925,0.01427,61086.0,61085.0,0.166623]
[1728502625152,0.00927,61086.0,61085.0,0.165623]
[1728502625871,0.00527,61086.0,61085.0,0.164623]
[1728502626112,0.00927,61086.0,61085.0,0.164623]
[1728502626355,0.172973,61086.0,61085.0,0.000917]
[1728502626602,0.253573,61086.0,61085.0,0.000917]
[1728502626856,0.25985642,61086.0,61085.0,0.002917]
[1728502627100,0.25985642,61086.0,61085.0,0.003917]
[1728502627333,0.25985642,61086.0,61085.0,0.002917]
[1728502627560,0.65189549,61086.0,61085.0,0.002917]
[1728502627825,0.65261207,61086.0,61085.0,0.002917]
[1728502628349,0.65761207,61086.0,61085.0,0.003917]
[1728502628849,0.65761207,61086.0,61085.0,0.001917]
[1728502629099,0.275984,61082.0,61081.0,0.000817]
[1728502629322,0.55373833,61082.0,61081.0,0.000817]
[1728502629613,0.71129255,61082.0,61081.0,0.000817]
[1728502630383,0.87209916,61082.0,61081.0,0.001817]
[1728502630621,0.87509916,61082.0,61081.0,0.001817]
[1728502630862,0.88109916,61082.0,61081.0,0.002817]
[1728502631369,0.87609916,61082.0,61081.0,0.001817]
[1728502631621,0.87909916,61082.0,61081.0,0.002817]
[1728502632105,0.87509916,61082.0,61081.0,0.001817]
[1728502632360,0.87909916,61082.0,61081.0,0.002817]
[1728502632592,0.71829255,61082.0,61081.0,0.002817]
[1728502632823,0.45745491,61082.0,61081.0,0.002817]
[1728502633779,0.45245491,61082.0,61081.0,0.001817]
[1728502634014,0.44845491,61082.0,61081.0,0.000817]
[1728502634253,0.45545491,61082.0,61081.0,0.001817]
[1728502635419,0.01627,61082.0,61081.0,0.166534]
[1728502635666,0.01627,61082.0,61081.0,0.002817]
[1728502635899,0.01227,61082.0,61081.0,0.001817]
[1728502636135,0.01227,61082.0,61081.0,0.166534]
[1728502636136,0.01627,61082.0,61081.0,0.166534]
[1728502636623,0.01427,61082.0,61081.0,0.32737164]
[1728502637121,0.01627,61082.0,61081.0,0.32737164]
[1728502637586,0.00927,61082.0,61081.0,0.32637164]
[1728502638073,0.009092,61082.0,61081.0,0.32637164]
[1728502638608,0.005092,61082.0,61081.0,0.32637164]
[1728502638850,0.005092,61082.0,61081.0,0.32837164]
[1728502639331,0.003092,61082.0,61081.0,0.32837164]
[1728502639583,0.003092,61084.0,61083.0,0.491132]
[1728502640302,0.005092,61084.0,61083.0,0.491132]
[1728502641273,0.006092,61084.0,61083.0,0.491132]
[1728502641515,0.004092,61084.0,61083.0,0.491132]
[1728502641766,0.001,61084.0,61083.0,0.84506964]
[1728502642026,0.001,61084.0,61083.0,0.998986]
[1728502642269,0.001,61084.0,61083.0,0.95331045]
[1728502642505,0.001,61084.0,61083.0,0.95986045]
[1728502642989,0.24686427,61098.0,61083.0,0.95986045]
[1728502642990,0.003092,61090.0,61089.0,0.163695]
[1728502643233,0.003092,61090.0,61089.0,0.32453264]
[1728502643978,0.001636,61098.0,61097.0,0.163674]
[1728502644229,0.001636,61098.0,61097.0,0.32451164]
[1728502644468,0.004728,61098.0,61097.0,0.32451164]
[1728502645214,0.006728,61098.0,61097.0,0.163674]
[1728502646183,0.004728,61098.0,61097.0,0.32751164]
[1728502646416,0.004728,61098.0,61097.0,0.32551164]
[1728502646883,0.004728,61098.0,61097.0,0.32651164]
[1728502647369,0.004728,61098.0,61097.0,0.32551164]
[1728502647630,0.004728,61098.0,61097.0,0.32451164]
[1728502648098,0.004728,61098.0,61097.0,0.32751164]
[1728502648871,0.006728,61098.0,61097.0,0.33051164]
[1728502650512,0.004728,61098.0,61097.0,0.33051164]
[1728502650998,0.006728,61098.0,61097.0,0.33051164]
[1728502653099,0.006728,61098.0,61097.0,0.32751164]
[1728502653328,0.006728,61098.0,61097.0,0.32551164]
[1728502653558,0.006728,61098.0,61097.0,0.32651164]
[1728502655237,0.36226991,61098.0,61097.0,0.002]
[1728502655444,0.44166991,61098.0,61097.0,0.002]
[1728502656127,0.249799,61098.0,61097.0,0.001]
[1728502656391,0.002,61094.0,61093.0,0.40891227]
[1728502656840,0.002,61094.0,61093.0,0.32452164]
[1728502656841,0.003092,61094.0,61093.0,0.32452164]
[1728502657056,0.009728,61098.0,61097.0,0.163674]